[Event "15th Arad Open 2022"]
[Site "Arad"]
[Date "2022.08.13"]
[Round "8.12"]
[White "Herczeg, Marcell"]
[Black "Ciocani, Iosif"]
[Result "0-1"]
[ECO "D01"]
[WhiteElo "2044"]
[BlackElo "2012"]
[Annotator "NA RC"]
[PlyCount "98"]
[EventDate "2022.08.08"]
[EventType "swiss"]
[EventCountry "ROU"]
[SourceTitle "playchess.com"]
[Source "ChessBase"]
[SourceQuality "1"]
[TimeControl "5400+30"]

1. d4 {[%emt 0:00:12]} Nf6 {[%emt 0:00:06]} 2. Nc3 {[%emt 0:00:49]} d5 {[%emt 0:00:57]} 3. Bg5 {[%emt 0:00:48]} Bf5 {[%emt 0:03:20]} 4. Bxf6 {[%emt 0:01:08]} exf6 {[%emt 0:00:14]} 5. e3 {[%emt 0:00:18]} c6 {[%emt 0:01:39]} 6. Bd3 {[%emt 0:00:46]} Be6 {[%emt 0:00:49]} 7. Nge2 {[%emt 0:03:03]} Bd6 {[%emt 0:01:47]} 8. Qd2 {[%emt 0:06:43]} Nd7 {[%emt 0:02:34]} 9. Nf4 {[%emt 0:10:17]} f5 {[%emt 0:13:42]} 10. O-O-O {[%emt 0:03:07]} b5 {[%emt 0:02:57]} 11. g4 {[%emt 0:08:49]} fxg4 {[%emt 0:08:18]} 12. e4 {[%emt 0:00:48]} Qg5 {[%emt 0:04:55]} 13. Nce2 {[%emt 0:01:40]} dxe4 {[%emt 0:04:18]} 14. Bxe4 {[%emt 0:00:56]} Rc8 {[%emt 0:19:21]} 15. h4 {[%emt 0:31:26]} Qh6 {[%emt 0:02:29]} 16. Kb1 {[%emt 0:18:24]} O-O {[%emt 0:02:38]} 17. Rhg1 {[%emt 0:04:47]} Nb6 {[%emt 0:05:09]} 18. b3 {[%emt 0:01:03]} f5 {[%emt 0:04:45]} 19. Nxe6 {[%emt 0:03:27]} Qxe6 {[%emt 0:01:19]} 20. Bxc6 {[%emt 0:00:39]} Rxc6 {[%emt 0:02:31]} 21. d5 {[%emt 0:00:03]} Qxd5 {[%emt 0:01:53]} 22. Qxd5+ {[%emt 0:01:02]} Nxd5 {[%emt 0:00:06]} 23. Rxd5 {[%emt 0:00:03]} Bc5 {[%emt 0:01:24]} 24. Rf1 {[%emt 0:00:30]} g6 {[%emt 0:06:14]} 25. Nf4 {[%emt 0:00:26]} Re8 {[%emt 0:02:02]} 26. Nd3 {[%emt 0:01:04]} Bd6 {[%emt 0:00:53]} 27. Rxb5 {[%emt 0:00:54]} Re2 {[%emt 0:01:09]} 28. Rc1 {[%emt 0:00:01]} Ba3 {[%emt 0:01:02]} 29. Re1 {[%emt 0:01:08]} Rcxc2 {[%emt 0:01:21]} 30. Rb8+ {[%emt 0:00:16]} Kg7 {[%emt 0:01:53]} 31. Rb7+ {[%emt 0:00:04]} Kf6 {[%emt 0:00:42]} 32. Rxa7 {[%emt 0:00:19]} Rb2+ {[%emt 0:01:48]} 33. Ka1 {[%emt 0:01:26]} Rxe1+ {[%emt 0:01:30]} 34. Nxe1 {[%emt 0:00:04]} Rxf2 {[%emt 0:00:08]} 35. Ra6+ {[%emt 0:00:08]} Kf7 {[%emt 0:00:39]} 36. Rxa3 {[%emt 0:01:04]} Rf1 {[%emt 0:00:07]} 37. Kb2 {[%emt 0:00:04]} Rxe1 {[%emt 0:00:05]} 38. b4 {[%emt 0:00:15]} f4 {[%emt 0:00:19]} 39. Ra7+ {[%emt 0:00:29]} Re7 {[%emt 0:00:40]} 40. Ra4 {[%emt 0:00:00]} Re5 {[%emt 0:00:00]} 41. Kc3 {[%emt 0:00:00]} f3 {[%emt 0:00:00]} 42. Ra7+ {[%emt 0:00:00]} Kf6 {[%emt 0:00:00]} 43. Ra8 {[%emt 0:00:00]} Rf5 {[%emt 0:00:00]} 44. Kd3 {[%emt 0:00:00]} g3 {[%emt 0:00:00]} 45. Rf8+ {[%emt 0:00:00]} Ke5 {[%emt 0:00:00]} 46. Rxf5+ {[%emt 0:00:00]} Kxf5 {[%emt 0:00:00]} 47. Ke3 {[%emt 0:00:00]} Kg4 {[%emt 0:00:00]} 48. b5 {[%emt 0:00:00]} g2 {[%emt 0:00:00]} 49. Kf2 {[%emt 0:00:00]} Kh3 {[%emt 0:00:00]} 0-1

[Event "15th Arad Open 2022"]
[Site "Arad"]
[Date "2022.08.13"]
[Round "8.13"]
[White "Matasaru, Stephanie"]
[Black "Pauwels, Xander"]
[Result "0-1"]
[ECO "B90"]
[WhiteElo "1885"]
[BlackElo "2040"]
[Annotator "NA RC"]
[PlyCount "88"]
[EventDate "2022.08.08"]
[EventType "swiss"]
[EventCountry "ROU"]
[SourceTitle "playchess.com"]
[Source "ChessBase"]
[SourceQuality "1"]
[TimeControl "5400+30"]

1. e4 {[%emt 0:00:01]} c5 {[%emt 0:00:09]} 2. Nf3 {[%emt 0:00:04]} d6 {[%emt 0:00:11]} 3. d4 {[%emt 0:00:08]} cxd4 {[%emt 0:00:06]} 4. Nxd4 {[%emt 0:00:04]} Nf6 {[%emt 0:00:07]} 5. Nc3 {[%emt 0:00:05]} a6 {[%emt 0:00:03]} 6. Be3 {[%emt 0:00:05]} e5 {[%emt 0:00:25]} 7. Nb3 {[%emt 0:00:05]} Be6 {[%emt 0:00:06]} 8. f3 {[%emt 0:00:08]} h5 {[%emt 0:00:27]} 9. Qd2 {[%emt 0:01:17]} Nbd7 {[%emt 0:02:06]} 10. Nd5 {[%emt 0:00:41]} Bxd5 {[%emt 0:01:26]} 11. exd5 {[%emt 0:00:09]} g6 {[%emt 0:01:19]} 12. c4 {[%emt 0:04:00]} b6 {[%emt 0:06:00]} 13. Be2 {[%emt 0:00:46]} Bg7 {[%emt 0:00:47]} 14. O-O {[%emt 0:00:11]} O-O {[%emt 0:00:19]} 15. Rac1 {[%emt 0:04:25]} Re8 {[%emt 0:01:26]} 16. a4 {[%emt 0:12:48]} a5 {[%emt 0:03:51]} 17. Na1 {[%emt 0:11:21]} Nc5 {[%emt 0:16:45]} 18. Bd1 {[%emt 0:19:31]} Qe7 {[%emt 0:18:53]} 19. Rb1 {[%emt 0:04:12]} Nfd7 {[%emt 0:02:51]} 20. b4 {[%emt 0:04:38]} axb4 {[%emt 0:00:10]} 21. Qxb4 {[%emt 0:01:27]} e4 {[%emt 0:02:39]} 22. f4 {[%emt 0:01:20]} Rec8 {[%emt 0:05:51]} 23. Bc2 {[%emt 0:04:34]} f5 {[%emt 0:02:48]} 24. Nb3 {[%emt 0:06:16]} Rxa4 {[%emt 0:04:46]} 25. Qb5 {[%emt 0:00:23]} Ra2 {[%emt 0:01:00]} 26. Nxc5 {[%emt 0:01:10]} Nxc5 {[%emt 0:03:26]} 27. Bb3 {[%emt 0:01:44]} Re2 {[%emt 0:01:22]} 28. Bxc5 {[%emt 0:00:30]} bxc5 {[%emt 0:00:10]} 29. Qa6 {[%emt 0:00:49]} Rb8 {[%emt 0:03:40]} 30. Ba4 {[%emt 0:01:30]} Rbb2 {[%emt 0:03:22]} 31. Rxb2 {[%emt 0:00:10]} Rxb2 {[%emt 0:00:05]} 32. Qc8+ {[%emt 0:01:02]} Kh7 {[%emt 0:03:40]} 33. Qe6 {[%emt 0:02:45]} Qf6 {[%emt 0:04:44]} 34. Be8 {[%emt 0:01:29]} Rb7 {[%emt 0:01:36]} 35. Bd7 {[%emt 0:01:45]} Qd4+ {[%emt 0:06:39]} 36. Kh1 {[%emt 0:00:09]} Qd3 {[%emt 0:01:22]} 37. Rg1 {[%emt 0:00:33]} Rb1 {[%emt 0:00:38]} 38. h3 {[%emt 0:00:18]} Rxg1+ {[%emt 0:00:20]} 39. Kxg1 {[%emt 0:00:02]} Qe3+ {[%emt 0:00:06]} 40. Kh1 {[%emt 0:00:00]} Qxf4 {[%emt 0:00:00]} 41. Be8 {[%emt 0:00:00]} Qf1+ {[%emt 0:00:00]} 42. Kh2 {[%emt 0:00:00]} Be5+ {[%emt 0:00:00]} 43. g3 {[%emt 0:00:00]} Qf2+ {[%emt 0:00:00]} 44. Kh1 {[%emt 0:00:00]} Qf3+ {[%emt 0:00:00]} 0-1

[Event "15th Arad Open 2022"]
[Site "Arad"]
[Date "2022.08.13"]
[Round "8.14"]
[White "Moerman, Thomas"]
[Black "Tamas, Christian-Arrydan"]
[Result "1/2-1/2"]
[ECO "E71"]
[WhiteElo "2026"]
[BlackElo "1913"]
[Annotator "NA RC"]
[PlyCount "167"]
[EventDate "2022.08.08"]
[EventType "swiss"]
[EventCountry "ROU"]
[SourceTitle "playchess.com"]
[Source "ChessBase"]
[SourceQuality "1"]
[TimeControl "5400+30"]

1. d4 {[%emt 0:00:04]} Nf6 {[%emt 0:00:13]} 2. c4 {[%emt 0:00:11]} g6 {[%emt 0:00:18]} 3. Nc3 {[%emt 0:00:50]} Bg7 {[%emt 0:00:16]} 4. e4 {[%emt 0:00:09]} d6 {[%emt 0:00:14]} 5. h3 {[%emt 0:00:28]} O-O {[%emt 0:00:15]} 6. Be3 {[%emt 0:00:56]} e5 {[%emt 0:00:13]} 7. d5 {[%emt 0:00:13]} Na6 {[%emt 0:00:39]} 8. g4 {[%emt 0:00:08]} Nc5 {[%emt 0:00:06]} 9. f3 {[%emt 0:00:05]} a5 {[%emt 0:00:08]} 10. Qd2 {[%emt 0:01:34]} c6 {[%emt 0:00:12]} 11. Nge2 {[%emt 0:01:34]} cxd5 {[%emt 0:00:29]} 12. cxd5 {[%emt 0:00:06]} Bd7 {[%emt 0:01:26]} 13. Ng3 {[%emt 0:00:25]} a4 {[%emt 0:00:37]} 14. h4 {[%emt 0:00:49]} Qa5 {[%emt 0:00:10]} 15. h5 {[%emt 0:00:28]} b5 {[%emt 0:00:08]} 16. hxg6 {[%emt 0:01:14]} fxg6 {[%emt 0:00:48]} 17. Bh6 {[%emt 0:15:50]} b4 {[%emt 0:12:10]} 18. Nd1 {[%emt 0:04:12]} b3 {[%emt 0:01:34]} 19. Qxa5 {[%emt 0:03:50]} Rxa5 {[%emt 0:00:06]} 20. Bd2 {[%emt 0:00:09]} Ra7 {[%emt 0:20:50]} 21. a3 {[%emt 0:00:53]} Rc8 {[%emt 0:01:32]} 22. Nc3 {[%emt 0:06:14]} Ne8 {[%emt 0:04:15]} 23. Be2 {[%emt 0:05:19]} Bf6 {[%emt 0:02:18]} 24. Rh2 {[%emt 0:04:40]} Nc7 {[%emt 0:03:33]} 25. Kf2 {[%emt 0:06:11]} N7a6 {[%emt 0:02:31]} 26. Be3 {[%emt 0:05:02]} Be8 {[%emt 0:02:15]} 27. Nf1 {[%emt 0:01:02]} Bd8 {[%emt 0:07:46]} 28. Nb5 {[%emt 0:10:12]} Bxb5 {[%emt 0:00:37]} 29. Bxb5 {[%emt 0:00:06]} Ba5 {[%emt 0:04:58]} 30. Bxa4 {[%emt 0:06:35]} Rf7 {[%emt 0:01:56]} 31. Bb5 {[%emt 0:06:15]} Nxe4+ {[%emt 0:00:19]} 32. Kg1 {[%emt 0:00:57]} Nec5 {[%emt 0:00:31]} 33. Rc1 {[%emt 0:01:25]} Nc7 {[%emt 0:01:39]} 34. Bc4 {[%emt 0:01:46]} Na8 {[%emt 0:04:11]} 35. Rf2 {[%emt 0:02:01]} Nb6 {[%emt 0:01:02]} 36. Kg2 {[%emt 0:04:56]} Kg7 {[%emt 0:01:52]} 37. Ng3 {[%emt 0:00:56]} Rfc7 {[%emt 0:02:02]} 38. Rff1 {[%emt 0:01:02]} Nba4 {[%emt 0:02:13]} 39. Rb1 {[%emt 0:01:00]} Nb6 {[%emt 0:02:56]} 40. Rfc1 {[%emt 0:00:00]} Nxc4 {[%emt 0:00:00]} 41. Rxc4 {[%emt 0:00:00]} Nd3 {[%emt 0:00:00]} 42. Ra4 {[%emt 0:00:00]} Rc2+ {[%emt 0:00:00]} 43. Kh3 {[%emt 0:00:00]} Bd2 {[%emt 0:00:00]} 44. Ra7+ {[%emt 0:00:00]} Kf8 {[%emt 0:00:00]} 45. Bxd2 {[%emt 0:00:00]} Rxd2 {[%emt 0:00:00]} 46. Ne4 {[%emt 0:00:00]} Nf2+ {[%emt 0:00:00]} 47. Kg3 {[%emt 0:03:15]} Nxe4+ {[%emt 0:00:00]} 48. fxe4 {[%emt 0:00:05]} Kg8 {[%emt 0:00:00]} 49. Rf1 {[%emt 0:03:17]} Rf8 {[%emt 0:00:38]} 50. Rxf8+ {[%emt 0:03:21]} Kxf8 {[%emt 0:00:07]} 51. Rxh7 {[%emt 0:00:24]} Rxb2 {[%emt 0:00:07]} 52. Rb7 {[%emt 0:00:06]} Rb1 {[%emt 0:00:48]} 53. Kf2 {[%emt 0:04:15]} b2 {[%emt 0:00:12]} 54. Kg2 {[%emt 0:01:02]} Re1 {[%emt 0:07:16]} 55. Rxb2 {[%emt 0:00:13]} Rxe4 {[%emt 0:01:04]} 56. Kg3 {[%emt 0:00:23]} Rd4 {[%emt 0:00:28]} 57. Rb5 {[%emt 0:00:14]} Ke7 {[%emt 0:00:38]} 58. g5 {[%emt 0:00:23]} Kd8 {[%emt 0:06:07]} 59. Ra5 {[%emt 0:01:02]} Kc7 {[%emt 0:00:46]} 60. Ra7+ {[%emt 0:00:21]} Kb6 {[%emt 0:00:10]} 61. Rg7 {[%emt 0:00:08]} Kc5 {[%emt 0:00:38]} 62. Rxg6 {[%emt 0:00:25]} Kxd5 {[%emt 0:00:59]} 63. Rf6 {[%emt 0:02:18]} Ra4 {[%emt 0:00:08]} 64. Rf3 {[%emt 0:00:20]} e4 {[%emt 0:00:13]} 65. Rb3 {[%emt 0:01:07]} Ra7 {[%emt 0:05:30]} 66. Kf4 {[%emt 0:00:13]} Rf7+ {[%emt 0:00:09]} 67. Kg4 {[%emt 0:00:17]} Kc4 {[%emt 0:00:52]} 68. g6 {[%emt 0:00:22]} Rd7 {[%emt 0:00:50]} 69. Rb4+ {[%emt 0:00:05]} Kd3 {[%emt 0:00:10]} 70. Kf4 {[%emt 0:00:31]} d5 {[%emt 0:00:13]} 71. Rb3+ {[%emt 0:00:04]} Ke2 {[%emt 0:02:38]} 72. Rg3 {[%emt 0:00:05]} Rg7 {[%emt 0:00:42]} 73. a4 {[%emt 0:00:28]} Kf2 {[%emt 0:00:18]} 74. a5 {[%emt 0:00:59]} d4 {[%emt 0:01:04]} 75. a6 {[%emt 0:00:07]} d3 {[%emt 0:01:18]} 76. a7 {[%emt 0:00:36]} Rxa7 {[%emt 0:00:07]} 77. g7 {[%emt 0:00:03]} Rxg7 {[%emt 0:00:42]} 78. Rxg7 {[%emt 0:00:04]} d2 {[%emt 0:00:39]} 79. Rd7 {[%emt 0:00:05]} e3 {[%emt 0:00:22]} 80. Rd3 {[%emt 0:00:04]} Ke2 {[%emt 0:01:24]} 81. Rxe3+ {[%emt 0:00:35]} Kf2 {[%emt 0:00:06]} 82. Rd3 {[%emt 0:00:15]} Ke2 {[%emt 0:00:05]} 83. Rxd2+ {[%emt 0:00:09]} Kxd2 {[%emt 0:00:05]} 84. Ke4 {[%emt 0:05:02]} 1/2-1/2

[Event "15th Arad Open 2022"]
[Site "Arad"]
[Date "2022.08.13"]
[Round "8.15"]
[White "Anghel, Iulian-Mihai"]
[Black "Batagan, Ilinca-Petra"]
[Result "1-0"]
[ECO "B90"]
[WhiteElo "2015"]
[BlackElo "1932"]
[Annotator "TA"]
[PlyCount "75"]
[EventDate "2022.08.08"]
[EventType "swiss"]
[EventCountry "ROU"]
[SourceTitle "playchess.com"]
[Source "ChessBase"]
[SourceQuality "1"]
[TimeControl "5400+30"]

{[%evp 13,75,14,57,57,37,41,51,37,62,29,33,37,33,14,14,0,0,-40,-30,-35,0,0,0,-69,-56,-75,-87,-166,-174,-177,-35,-134,-53,-106,-89,-116,-83,-117,-129,-94,-31,-86,-85,-77,-90,-87,-82,-77,0,0,0,-82,201,174,5035,4794,4810,1410,29986,29987,29987,29981,29988,29982]} 1. e4 {[%emt 0:00:03]} c5 {[%emt 0:00:39]} 2. Nf3 {[%emt 0:00:07][%cal Bg1f3,Bf3d4,Bd4e2,Be2g3][%mdl 32]} d6 {[%emt 0:00:23]} 3. d4 {[%emt 0:00:07]} cxd4 {[%emt 0:00:44]} 4. Nxd4 {[%emt 0:00:07]} Nf6 {[%emt 0:00:10]} 5. Nc3 {[%emt 0:00:06]} a6 {[%emt 0:00:11]} 6. h3 {[%emt 0:00:11]} e5 {[%emt 0:02:53]} 7. Nde2 {[%emt 0:00:19]} Be7 {[%emt 0:02:30]} 8. g4 {[%emt 0:00:54] B90: Sicilian Najdorf: Unusual White 6th moves, 6 Be3 Ng4 and 6 Be3 e5.} h6 {[%emt 0:02:37]} 9. Ng3 {[%emt 0:02:30]} Qc7 {[%emt 0:04:22]} 10. Bg2 {[%emt 0:02:31] [#] White is slightly better.} b5 $146 {[%emt 0:02:30]} ({Predecessor:} 10... Nc6 11. Be3 Na5 12. O-O Nc4 13. Bc1 O-O 14. Qd3 Rd8 15. b3 Nb6 16. Be3 Bf8 {0-1 (39) Nejanky,M-Cabrera Pando,R (2104) Buenos Aires 2002}) 11. a3 {[%emt 0:01:06]} Nc6 {[%emt 0:02:17]} 12. O-O {[%emt 0:04:48]} O-O {[%emt 0:02:17]} 13. Nf5 {[%emt 0:02:41]} Bxf5 {[%emt 0:00:55]} 14. exf5 {[%emt 0:01:16]} Rac8 {[%emt 0:07:00]} 15. f4 {[%emt 0:07:11]} exf4 {[%emt 0:07:14]} 16. Bxf4 {[%emt 0:00:43]} Qa7+ {[%emt 0:03:23]} 17. Kh1 {[%emt 0:01:33] Active counter play!} Ne5 {[%emt 0:00:40]} 18. Ne2 {[%emt 0:14:05]} (18. Re1 $11) 18... Nc4 $1 $15 {[%emt 0:08:38] Pair of Knights!} 19. Qc1 {[%emt 0:09:09]} d5 {[%emt 0:03:56]} 20. g5 {[%emt 0:06:03]} (20. b3 $17 Nxa3 21. Rxa3 Bxa3 22. Qxa3) 20... hxg5 $19 {[%emt 0:03:47]} 21. Bxg5 {[%emt 0:00:06]} Nd6 {[%emt 0:10:12]} (21... Ne4 22. Bxe4 dxe4 23. f6 $11) (21... Rfe8 $19 {White must now prevent ...Nh7.} 22. a4 b4) 22. Ng3 {[%emt 0:11:39]} (22. Nc3 $15) 22... Nde4 {[%emt 0:03:30]} (22... Rfe8 $17 23. a4 b4) 23. Nxe4 {[%emt 0:08:29]} (23. Bxe4 $15 dxe4 24. c3 (24. Bxf6 Bxf6 25. c3 e3 $17)) 23... dxe4 $17 {[%emt 0:00:25]} ({Much worse is} 23... Nxe4 $6 24. Bxe4 dxe4 25. f6 $11) 24. Qd1 {[%emt 0:00:53] Prevents Nh5.} Qc5 {[%emt 0:07:15]} 25. Rc1 {[%emt 0:02:31]} Rfd8 {[%emt 0:00:56]} 26. Qe2 {[%emt 0:05:36]} Qc4 {[%emt 0:00:32]} ({Better is} 26... Qe5 $17 {Hoping for ...Bd6.} 27. c3 Re8) 27. Qf2 {[%emt 0:01:37] [#]} (27. Qxc4 $15 Rxc4 28. c3) 27... Ng4 $1 {[%emt 0:01:58]} 28. Qh4 {[%emt 0:01:06]} (28. Qf4 Nf6) 28... Bxg5 {[%emt 0:02:43]} 29. Qxg5 {[%emt 0:00:04]} Nf6 {[%emt 0:00:42]} 30. Rg1 {[%emt 0:01:53] Threatens to win with Bf1.} Ne8 {[%emt 0:00:38]} ({Black should try} 30... Qd4 $17 31. c3 Qd2) 31. Rce1 $11 {[%emt 0:01:54]} Qxc2 {[%emt 0:05:44]} 32. f6 {[%emt 0:03:28]} (32. Bxe4 $11 {remains equal.} Qd2 33. Qh4) 32... Qxb2 $2 {[%emt 0:00:35][%mdl 8192]} (32... Nxf6 $2 33. Bxe4 $1 {[%mdl 512]} g6 34. Bxc2 $18) (32... Qd2 $17 {stays on course.} 33. Bxe4 Qxg5 34. Rxg5 Nxf6) 33. fxg7 $40 {[%emt 0:00:49][%mdl 128] White wants a kill.} Rd6 $2 {[%emt 0:06:35]} (33... Qxg7 $2 34. Qh4 Qh8 35. Bxe4+ Ng7 {[#]} 36. Rxg7+ $1 {[%mdl 512]} Qxg7 37. Rg1 $18) (33... Rd2) 34. Bxe4 {[%emt 0:00:58][%cal Oe4h7] Intending Bh7+! and mate.} Nxg7 {[%emt 0:01:52]} 35. Qf5 {[%emt 0:01:38]} (35. Qh4 $142 Re8 36. Qh7+ Kf8 37. Qh8+ Ke7 38. Bc6+ (38. Qxg7 Qxg7 39. Bc2+ Kf8 $18) 38... Re6 39. Rxe6+ (39. Qxg7 Qxg7 40. Rxe6+ Kxe6 $16) 39... Kxe6 40. Bxe8) 35... Rc7 {[%emt 0:02:18]} 36. Qh7+ {[%emt 0:00:29] White mates.} Kf8 {[%emt 0:00:04]} 37. Qh8+ {[%emt 0:00:37]} Ke7 {[%emt 0:00:05]} 38. Bf5+ {[%emt 0:00:35] Never resign too early!  Weighted Error Value: White=0.31/Black=0.67} 1-0

[Event "15th Arad Open 2022"]
[Site "Arad"]
[Date "2022.08.13"]
[Round "8.16"]
[White "Tablan, Matei-Christian"]
[Black "Chima, Radu-Niculin"]
[Result "1/2-1/2"]
[ECO "B21"]
[WhiteElo "1928"]
[BlackElo "2005"]
[Annotator "TA"]
[PlyCount "62"]
[EventDate "2022.08.08"]
[EventType "swiss"]
[EventCountry "ROU"]
[SourceTitle "playchess.com"]
[Source "ChessBase"]
[SourceQuality "1"]
[TimeControl "5400+30"]

{[%evp 9,62,-4,-2,2,8,-4,15,0,87,87,89,81,114,93,97,95,102,102,97,91,93,91,83,83,128,127,127,108,118,98,125,124,131,122,121,119,137,123,145,99,181,195,196,117,129,77,69,89,86,93,48,45,32,0,0]} 1. e4 {[%emt 0:00:03]} e6 {[%emt 0:00:08]} 2. d3 {[%emt 0:04:53]} d5 {[%emt 0:00:27]} 3. Be2 {[%emt 0:01:24]} c5 {[%emt 0:01:32]} 4. f4 {[%emt 0:00:19]} Nc6 {[%emt 0:01:32]} 5. Nf3 {[%emt 0:00:05]} Nf6 {[%emt 0:01:26]} 6. e5 {[%emt 0:00:04] B21: Sicilian: 2 f4 and Morra Gambit.} Nd7 {[%emt 0:00:08]} 7. c4 {[%emt 0:00:31]} Nb6 {[%emt 0:03:56] is the legacy move (7...d4).} 8. O-O {[%emt 0:00:12] [#]} dxc4 $146 {[%emt 0:03:21]} (8... Be7 $11 {remains equal.}) ({Predecessor:} 8... Be7 9. Nc3 O-O 10. b3 Bd7 11. Kh1 Re8 12. Qe1 Bf8 13. Qg3 Ne7 14. Qh3 Ng6 {1-0 (25) Jones,G (2670)-Eltigani,O (2235) Chess.com INT 2020}) 9. dxc4 $16 {[%emt 0:00:05]} Qxd1 {[%emt 0:01:16]} 10. Rxd1 {[%emt 0:00:05]} Nb4 {[%emt 0:01:57]} 11. Nc3 {[%emt 0:15:26]} Bd7 {[%emt 0:02:57]} 12. Ne1 {[%emt 0:01:28] Against Nc2} Bc6 {[%emt 0:03:29]} 13. a3 {[%emt 0:10:56]} Na6 {[%emt 0:00:40]} 14. b3 {[%emt 0:00:13]} Be7 {[%emt 0:01:19]} 15. Bf3 {[%emt 0:00:10]} Bxf3 {[%emt 0:00:38]} 16. Nxf3 {[%emt 0:00:05]} Nc7 {[%emt 0:00:58]} 17. Be3 {[%emt 0:16:35]} O-O {[%emt 0:07:30]} 18. Ne4 {[%emt 0:03:14]} Na6 {[%emt 0:00:17]} 19. Rd2 {[%emt 0:08:36]} Rfd8 {[%emt 0:01:21]} 20. Rad1 $36 {[%emt 0:00:07][%mdl 2048] White is on the roll.} Rxd2 {[%emt 0:00:39]} 21. Rxd2 {[%emt 0:00:06]} ({Don't do} 21. Bxd2 Rd8 $14) 21... Kf8 {[%emt 0:03:05]} 22. g4 {[%emt 0:11:24]} f6 {[%emt 0:05:01]} 23. Kf1 {[%emt 0:14:42]} Ke8 {[%emt 0:06:08]} 24. g5 {[%emt 0:05:44] White is much more active. The black rooks are badly placed.} ({White should play} 24. exf6 gxf6 25. Ne1) 24... Nd7 {[%emt 0:08:32]} (24... fxe5 $16 25. Nxe5 Rd8) 25. gxf6 $18 {[%emt 0:02:52]} gxf6 {[%emt 0:00:22] [#]} 26. exf6 {[%emt 0:00:49]} (26. Rg2 $1 $18) 26... Nxf6 $16 {[%emt 0:03:22]} 27. Nfg5 {[%emt 0:01:14]} ({Better is} 27. Nxf6+ Bxf6 28. Ng5) 27... Nxe4 {[%emt 0:02:49]} 28. Nxe4 {[%emt 0:00:02]} b6 {[%emt 0:01:58]} 29. Ke2 {[%emt 0:00:26]} Rc8 {[%emt 0:04:13]} 30. Kf3 {[%emt 0:00:26]} Nb8 $1 {[%emt 0:00:09]} 31. Rd3 {[%emt 0:03:05]} Nc6 {[%emt 0:34:50] Weighted Error Value: White=0.13 (very precise) /Black=0.16 (very precise)} 1/2-1/2

[Event "15th Arad Open 2022"]
[Site "Arad"]
[Date "2022.08.13"]
[Round "8.17"]
[White "Balaban-Voia, Alexandru"]
[Black "Samu, Sorin-Mihai"]
[Result "1-0"]
[ECO "A08"]
[WhiteElo "1869"]
[BlackElo "1952"]
[Annotator "TA"]
[PlyCount "75"]
[EventDate "2022.08.08"]
[EventType "swiss"]
[EventCountry "ROU"]
[SourceTitle "playchess.com"]
[Source "ChessBase"]
[SourceQuality "1"]
[TimeControl "5400+30"]

{[%evp 12,75,-13,-21,-21,-17,0,0,0,0,0,6,13,0,0,1,57,50,67,60,56,50,70,31,126,126,119,127,226,182,618,572,1070,1116,1098,1078,1074,1056,1233,1229,1507,1350,29984,29985,29995,1397,1233,1199,1189,1151,1067,692,5218,2699,4894,2570,1652,1551,29985,12789,29988,29989,29989,29981,29994,5261]} 1. g3 {[%emt 0:00:03]} Nf6 {[%emt 0:00:13]} 2. Bg2 {[%emt 0:00:09]} d5 {[%emt 0:00:08]} 3. Nf3 {[%emt 0:00:19]} c5 {[%emt 0:00:15]} 4. O-O {[%emt 0:00:34]} Nc6 {[%emt 0:00:03]} 5. d3 {[%emt 0:00:06]} e5 {[%emt 0:00:26]} 6. e4 {[%emt 0:02:22]} d4 {[%emt 0:00:20]} 7. a4 {[%emt 0:05:01]} Bd6 {[%emt 0:00:11] A08: King's Indian Attack.} 8. Na3 {[%emt 0:00:45]} Bg4 {[%emt 0:00:37]} 9. h3 {[%emt 0:03:24] [#]} Be6 $146 {[%emt 0:02:12] The position is equal.} ({Predecessor:} 9... Bh5 10. Qe1 Nd7 11. Nh4 O-O 12. Nf5 Bc7 13. Bd2 a6 14. h4 Rb8 15. Nc4 b5 16. axb5 axb5 {1-0 (31) Lornye,P (2223)-Terletsky,O (2241) Lvov 2015}) 10. Ng5 {[%emt 0:18:33]} Bd7 {[%emt 0:00:33]} 11. f4 {[%emt 0:14:10]} h6 {[%emt 0:00:21]} 12. Nc4 {[%emt 0:03:03]} Bc7 {[%emt 0:01:05]} 13. Nf3 {[%emt 0:00:34][%cal Rf3e5]} Qe7 {[%emt 0:01:07]} ({Black should play} 13... exf4 $1 $11 14. Bxf4 O-O) 14. Nfxe5 $14 {[%emt 0:03:01]} Nxe5 {[%emt 0:00:29]} 15. fxe5 {[%emt 0:00:08]} Bxe5 {[%emt 0:00:43]} 16. Bf4 {[%emt 0:03:56]} Bxf4 {[%emt 0:00:24]} 17. Rxf4 {[%emt 0:09:16] Strongly threatening e5.} (17. gxf4 $5 {[%cal Re4e5]} Bc6 18. e5 $14) 17... Be6 {[%emt 0:00:19] Black is on the road to losing.} (17... O-O $14) 18. e5 $16 {[%emt 0:01:33]} Nd5 {[%emt 0:00:23]} 19. Nd6+ {[%emt 0:00:17]} Kd7 {[%emt 0:00:37]} (19... Kf8 $16) 20. c4 {[%emt 0:09:21]} dxc3 $2 {[%emt 0:01:50]} (20... Nxf4 21. gxf4 Rhb8) 21. Qb3 $18 {[%emt 0:02:50]} cxb2 {[%emt 0:03:21]} 22. Qxb7+ {[%emt 0:01:54]} Nc7 {[%emt 0:00:02]} 23. Bc6+ {[%emt 0:02:07]} Kd8 {[%emt 0:00:01]} 24. Qxb2 {[%emt 0:00:22]} Qg5 {[%emt 0:00:53]} 25. Ne4 {[%emt 0:02:12]} Qh5 {[%emt 0:01:59]} 26. Bxa8 {[%emt 0:00:12][%cal Oe4c5]} Nxa8 {[%emt 0:01:09]} 27. Qb8+ {[%emt 0:00:14]} Ke7 {[%emt 0:01:45]} 28. Qxh8 {[%emt 0:01:22]} (28. Qd6+ $142 Ke8 {[#]} 29. Nf6+ $1 {[%mdl 512]} gxf6 30. exf6 Qd1+ 31. Rxd1 Bxh3 32. Qe7#) 28... Qxe5 {[%emt 0:00:28] [#]} 29. Qxa8 $1 {[%emt 0:03:37] Rb1 would kill now.} Qxa1+ {[%emt 0:01:08]} 30. Kh2 {[%emt 0:00:06]} Qxa4 {[%emt 0:01:06]} 31. Qb7+ {[%emt 0:00:44]} Bd7 {[%emt 0:00:20]} 32. Qd5 {[%emt 0:00:23]} f5 {[%emt 0:02:05]} 33. Qxc5+ {[%emt 0:02:02]} Kd8 {[%emt 0:00:20]} 34. Nf2 {[%emt 0:04:07]} Qa1 {[%emt 0:00:34]} 35. Rb4 {[%emt 0:00:47]} (35. Qf8+ $142 Be8 36. Qd6+ Bd7 37. Rxf5 Qe1 38. Qb8+ Bc8 39. Rf8+ Qe8 40. Rxe8+ Kxe8 41. Qxc8+ Ke7 42. Ne4) 35... Ke8 {[%emt 0:00:21]} 36. Rb8+ {[%emt 0:00:24] White mates.} Kf7 {[%emt 0:00:47]} 37. Rb7 {[%emt 0:01:09]} Ke8 {[%emt 0:01:57]} 38. Qe3+ {[%emt 0:01:07] Weighted Error Value: White=0.34/Black=1.53} (38. Qd6 $142 Kf7 39. Qxd7+ Kf6 40. Qe7+ Kg6 41. Qf7+ Kh7 42. Qxf5+ Kh8 43. Rb8#) 1-0